Workbook

Sheet Est. Gral
C1: Comisión de los Derechos Humanos del Estado de Coahuila de Zaragoza
C2: Visitaduría General
C3: 2014
B5: Visitadurías Regionales | C5: Saltillo | D5: Torreón | E5: Piedras Negras | F5: Monclova | G5: Acuña | H5: Sabinas | I5: Parras | J5: TOTAL
B6: Asesorías | C6: 1192 | D6: 3403 | E6: 795 | F6: 1369 | G6: 270 | H6: 28 | I6: 24 | J6: =SUM(C6:I6) -> 7081
B7: Gestorías | C7: 0 | D7: 0 | E7: 0 | F7: 0 | G7: 0 | H7: 0 | I7: 0 | J7: =SUM(C7:I7) -> 0
B8: Quejas 2014 | C8: =SUM(C9:C10) -> 460 | D8: =SUM(D9:D10) -> 469 | E8: 188 | F8: 278 | G8: 87 | H8: 73 | I8: 20 | J8: 1575
B9: Admitidas | C9: 382 | D9: 421 | E9: 164 | F9: 227 | G9: 79 | H9: 67 | I9: 19 | J9: =SUM(C9:I9) -> 1359
B10: Remisiones CNDH | C10: 78 | D10: 48 | E10: 24 | F10: 51 | G10: 8 | H10: 6 | I10: 1 | J10: 216
B11: Concluidas 2014 | C11: =SUM(C12,C13,C14, C15,C16,C17,C18,C19,C20,C21,C22,C23,C24,C25,C26,C27,C28,C29) -> 382 | D11: =SUM(D12:D29) -> 421 | E11: 164 | F11: 227 | G11: 79 | H11: 67 | I11: 19 | J11: 1359
A12: Causas de Conclusión | B12: Incompetencia | C12: 6 | D12: 14 | E12: 3 | F12: 3 | G12: 2 | H12: 0 | J12: 28
B13: Falta de interés | C13: 120 | D13: 113 | E13: 33 | F13: 44 | G13: 26 | H13: 8 | I13: 2 | J13: 346
B14: Conciliación | C14: 14 | D14: 56 | E14: 5 | F14: 1 | H14: 3 | I14: 3 | J14: 82
B15: Acumulación | C15: 13 | D15: 4 | E15: 9 | F15: 25 | H15: 2 | J15: =SUM(C15:H15) -> 53
B16: No se acreditan los hechos | C16: 64 | D16: 77 | E16: 15 | F16: 1 | G16: 16 | H16: 18 | I16: 2 | J16: =SUM(C16:I16) -> 193
B17: Resueltas durante el procedimiento | C17: 26 | D17: 43 | E17: 22 | F17: 112 | G17: 2 | H17: 3 | I17: 3 | J17: =SUM(C17:I17) -> 211
B18: Desistimiento | C18: 37 | D18: 42 | E18: 28 | F18: 17 | G18: 15 | H18: 8 | I18: 5 | J18: =SUM(C18:I18) -> 152
B19: Sin materia | C19: 9 | D19: 1 | F19: 3 | G19: 3 | H19: 1 | J19: =SUM(C19:H19) -> 17
B20: Acuerdo de no responsabilidad | D20: 5 | H20: 2 | J20: =SUM(C20:I20) -> 7
B21: No localizacion | C21: 16 | D21: 10 | E21: 13 | G21: 1 | H21: 1 | J21: =SUM(C21:H21) -> 41
B22: Extemporanea | C22: 1 | J22: =SUM(C22:H22) -> 1
B23: Improcedente | C23: 4 | D23: 5 | J23: =SUM(C23:H23) -> 9
B24: No aclaración | D24: 2 | J24: =SUM(D24:H24) -> 2
B25: No Ratificación | C25: 26 | D25: 21 | J25: =SUM(C25:I25) -> 47
B26: Hechos no violatorios | C26: 5 | E26: 3 | J26: =SUM(C26:I26) -> 8
B27: Recomendaciones 2016 de exp. 2014 | C27: 16 | D27: 8 | E27: 12 | G27: 2 | I27: 2 | J27: =SUM(C27:I27) -> 40
B28: Recomendaciones 2015 de exp. 2014 | C28: 13 | D28: 10 | E28: 9 | F28: 7 | G28: 9 | H28: 13 | I28: 2 | J28: =SUM(C28:I28) -> 63
B29: Recomendaciones 2014 | C29: 12 | D29: 10 | E29: 12 | F29: 14 | G29: 3 | H29: 8 | J29: =SUM(C29:H29) -> 59
B30: Tramite 2014 | C30: 0 | D30: =SUM(D8-D10-D11) -> 0 | E30: 0 | F30: 0 | G30: 0 | H30: 0 | I30: 0 | J30: 0
B31: Recomendaciones 2014 de exp. 2011 | C31: 2 | E31: 1 | J31: =SUM(C31:I31) -> 3
B32: Recomendaciones 2014 de exp. 2012 | C32: 11 | D32: 8 | J32: =SUM(C32:I32) -> 19
B33: Recomendaciones 2014 de exp. 2013 | C33: 32 | D33: 10 | E33: 4 | F33: 2 | G33: 8 | H33: 2 | J33: =SUM(C33:I33) -> 58
B34: 134 recomendaciones emitidas en el 2014
C55: Comisión de los Derechos Humanos del Estado de Coahuila de Zaragoza
C56: Visitaduría General
F57: 2015
B60: Visitadurías Regionales | C60: Saltillo | D60: Torreón | E60: Piedras Negras | F60: Monclova | G60: Acuña | H60: Sabinas | I60: Parras | J60: TOTAL
B61: Asesorías | C61: 1007 | D61: 3792 | E61: 972 | F61: 893 | G61: 385 | H61: 84 | I61: 164 | J61: =SUM(C61:I61) -> 7297
B62: Gestorías | C62: 28 | J62: =SUM(C62:I62) -> 28
B63: QUEJAS 2015 | C63: =SUM(C64:C65) -> 430 | D63: =SUM(D64:D65) -> 511 | E63: =SUM(E64:E65) -> 226 | F63: 282 | G63: 104 | H63: 73 | I63: 61 | J63: 1687
B64: Admitidas | C64: 355 | D64: 489 | E64: 201 | F64: 243 | G64: 88 | H64: 71 | I64: 56 | J64: =SUM(C64:I64) -> 1503
B65: Remisiones CNDH | C65: 75 | D65: 22 | E65: 25 | F65: 39 | G65: 16 | H65: 2 | I65: 5 | J65: 184
B66: Concluidas 2015 | C66: =SUM(C67:C84) -> 354 | D66: =SUM(D67:D84) -> 489 | E66: 196 | F66: =SUM(F67:F84) -> 243 | G66: 88 | H66: 71 | I66: 56 | J66: 1497
B67: Incompetencia | C67: 4 | D67: 16 | E67: 7 | F67: 0 | G67: 3 | H67: 3 | I67: 1 | J67: 34
B68: Falta de interés | C68: 115 | D68: 109 | E68: 44 | F68: 52 | G68: 35 | H68: 18 | I68: 9 | J68: 382
B69: Conciliación | C69: 4 | D69: 117 | E69: 15 | F69: 1 | G69: 8 | H69: 6 | I69: 19 | J69: 170
B70: Acumulación | C70: 8 | D70: 3 | E70: 13 | F70: 26 | G70: 4 | H70: 2 | I70: 2 | J70: 58
B71: No se acreditan los hechos | C71: 65 | D71: 35 | E71: 54 | F71: 1 | G71: 12 | H71: 14 | I71: 8 | J71: =SUM(C71:I71) -> 189
B72: Resueltas durante el procedimiento | C72: 23 | D72: 51 | E72: 12 | F72: 137 | G72: 9 | H72: 6 | I72: 4 | J72: 242
B73: Desistimiento | C73: 34 | D73: 61 | E73: 22 | F73: 9 | G73: 6 | H73: 4 | I73: 8 | J73: 144
B74: Sin materia | C74: 20 | D74: 4 | E74: 4 | F74: 8 | I74: 1 | J74: 37
B75: Acuerdo de no responsabilidad | C75: 15 | J75: 15
B76: No localizacion | C76: 17 | D76: 15 | E76: 7 | F76: 4 | G76: 3 | H76: 1 | I76: 2 | J76: 49
B77: Extemporanea
B78: Improcedente | C78: 3 | D78: 17 | H78: 1 | J78: =SUM(C78:I78) -> 21
B79: No aclaración | C79: 2 | D79: 4 | E79: 1 | G79: 1 | H79: 5 | J79: 13
B80: No Ratificación | C80: 6 | D80: 50 | E80: 6 | J80: 62
B81: Hechos no violatorios | C81: 10 | G81: 1 | H81: 1 | I81: 1 | J81: 13
B82: Por atracción CNDH | C82: 2 | E82: 1 | J82: 3
B83: Recomendaciones 2016 de exp. 2015. | C83: 4 | D83: 5 | E83: 1 | F83: 2 | G83: 4 | H83: 8 | J83: =SUM(C83:I83) -> 24
B84: Recomendaciones 2015 | C84: 22 | D84: 2 | E84: 9 | F84: 3 | G84: 2 | H84: 2 | I84: 1 | J84: 41
B85: Trámite 2015 | C85: =SUM(C63-C65-C66) -> 1 | D85: =SUM(D63-D65-D66) -> 0 | E85: =SUM(E63-E65-E66) -> 5 | F85: 0 | G85: 0 | H85: 0 | I85: 0 | J85: 6
B86: Trámite Total | C86: =SUM(C7+C9-C11+C85) -> 1 | D86: =SUM(D7+D9-D11+D85) -> 0 | E86: =SUM(E7+E9-E11+E85) -> 5 | F86: 0 | G86: =SUM(G7+G9-G11+G85) -> 0 | H86: =SUM(H7+H9-H11+H85) -> 0 | I86: =SUM(I7+I9-I11+I85) -> 0 | J86: =SUM(J7+J9-J11+J85) -> 6
B87: Recomendaciones de exp. 2014 emitidas en 2015 | C87: 12 | D87: 8 | E87: 6 | F87: 7 | G87: 8 | H87: 11 | I87: 0 | J87: =SUM(C87:I87) -> 52
B88: Recomendaciones de exp.2013 emitidas en 2015 | C88: 6 | D88: 9 | E88: 0 | F88: 1 | J88: =SUM(C88:I88) -> 16
C109: Comisión de los Derechos Humanos del Estado de Coahuila de Zaragoza
C110: Visitaduría General
F111: 2016
T113: _
B114: Visitadurías Regionales | C114: Saltillo | D114: Torreón | E114: Piedras Negras | F114: Monclova | G114: Acuña | H114: Sabinas | I114: Parras | J114: TOTAL
B115: Asesorías | C115: 943 | D115: 3207 | E115: 669 | F115: 648 | G115: 321 | H115: 207 | I115: 165 | J115: =SUM(C115:I115) -> 6160
B116: Gestorías | C116: 34 | D116: 3 | G116: 1 | H116: 1 | J116: =SUM(C116:I116) -> 39
B117: QUEJAS 2016 | C117: =SUM(C118:C119) -> 402 | D117: 422 | E117: 186 | F117: 341 | G117: 219 | H117: 98 | I117: 54 | J117: =SUM(C117:I117) -> 1722
B118: Admitidas | C118: 338 | D118: 417 | E118: 171 | F118: 295 | G118: 195 | H118: 96 | I118: 51 | J118: =SUM(C118:I118) -> 1563
B119: Remisiones | C119: 64 | D119: 5 | E119: 15 | F119: 46 | G119: 24 | H119: 2 | I119: 3 | J119: =SUM(C119:I119) -> 159
B120: Concluidas 2016 | C120: =SUM(C121:C137) -> 318 | D120: 410 | E120: 147 | F120: 295 | G120: 195 | H120: 96 | I120: 51 | J120: 1512
B121: Incompetencia | C121: 5 | D121: 17 | E121: 3 | G121: 11 | H121: 4 | I121: 1 | J121: =SUM(C121:I121) -> 41
B122: Falta de interés | C122: 46 | D122: 59 | E122: 13 | F122: 2 | G122: 17 | H122: 7 | I122: 3 | J122: 147
B123: Conciliación | C123: 8 | D123: 124 | E123: 2 | G123: 8 | H123: 4 | I123: 25 | J123: 171
B124: Acumulación | D124: 2 | E124: 4 | F124: 12 | G124: 4 | H124: 1 | J124: 23
B125: No se acreditan los hechos | C125: 124 | D125: 49 | E125: 73 | F125: 84 | G125: 85 | H125: 30 | I125: 11 | J125: 456
B126: Resueltas durante el procedimiento | C126: 51 | D126: 44 | E126: 2 | F126: 170 | G126: 25 | H126: 12 | I126: 3 | J126: 307
B127: Desistimiento | C127: 27 | D127: 59 | E127: 19 | F127: 9 | G127: 20 | H127: 17 | I127: 5 | J127: 156
B128: Sin materia | C128: 9 | D128: 7 | F128: 2 | G128: 1 | J128: 19
B129: Acuerdo de no responsabilidad | C129: 7 | J129: 7
B130: No localizacion | C130: 16 | D130: 12 | E130: 13 | G130: 15 | H130: 3 | I130: 1 | J130: =SUM(C130:I130) -> 60
B131: Extemporanea
B132: Improcedente | C132: 4 | D132: 5 | H132: 2 | J132: =SUM(C132:I132) -> 11
B133: No aclaración | D133: 1 | H133: 5 | J133: 6
B134: No Ratificación | C134: 1 | D134: 17 | E134: 3 | J134: 21
B135: Hechos no violatorios | C135: 3 | D135: 1 | G135: 1 | H135: 3 | I135: 1 | J135: 9
B136: Por atracción CNDH | C136: 2 | D136: 1 | J136: 3
B137: Recomendaciones 2016 | C137: 15 | D137: 12 | E137: 15 | F137: 16 | G137: 8 | H137: 8 | I137: 1 | J137: 75
B138: Trámite 2016 | C138: =SUM(C117-C119-C120) -> 20 | D138: =SUM(D117-D119-D120) -> 7 | E138: =SUM(E117-E119-E120) -> 24 | F138: 0 | G138: 0 | H138: 0 | I138: 0 | J138: 51
B139: Trámite Total 2016 | C139: =SUM(C30+C85+C138) -> 21 | D139: 7 | E139: 29 | F139: 0 | G139: 0 | H139: 0 | I139: 0 | J139: 57
B140: Recomendaciones 2015 | C140: 15 | E140: 1 | F140: 2 | J140: =SUM(C140:I140) -> 18
B141: Recomendaciones de exp. 2014 emitidas en 2015 | C141: 12 | D141: 8 | E141: 6 | F141: 7 | G141: 8 | H141: 11 | I141: 0 | J141: =SUM(C141:I141) -> 52
B142: Recomendaciones de exp.2013 emitidas en 2015 | C142: 6 | D142: 9 | E142: 0 | F142: 1 | J142: =SUM(C142:I142) -> 16
B143: Recomendaciones de exp.2013 emitidas en 2016 | C143: 1 | J143: 1
C162: Comisión de los Derechos Humanos del Estado de Coahuila de Zaragoza
C163: Visitaduría General
F164: 2017
B167: Visitadurías Regionales | C167: Saltillo | D167: Torreón | E167: Piedras Negras | F167: Monclova | G167: Acuña | H167: Sabinas | I167: Parras | J167: TOTAL
B168: Asesorías | C168: 1106 | D168: 1304 | E168: 874 | F168: 839 | G168: 1134 | H168: 644 | I168: 132 | J168: =SUM(C168:I168) -> 6033
B169: Gestorías | C169: 35 | D169: 30 | E169: 1 | F169: 9 | G169: 3 | H169: 23 | I169: 3 | J169: =SUM(C169:I169) -> 104
B170: QUEJAS 2017 | C170: =SUM(C171:C172) -> 331 | D170: 432 | E170: 217 | F170: 313 | G170: 170 | H170: 83 | I170: 68 | J170: =SUM(C170:I170) -> 1614
B171: Admitidas | C171: 288 | D171: 426 | E171: 206 | F171: 276 | G171: 147 | H171: 82 | I171: 64 | J171: =SUM(C171:I171) -> 1489
B172: Remisiones | C172: 43 | D172: 6 | E172: 11 | F172: 37 | G172: 23 | H172: 1 | I172: 4 | J172: =SUM(C172:I172) -> 125
B173: Concluidas 2017 | C173: =SUM(C174:C190) -> 203 | D173: 376 | E173: 105 | F173: 261 | G173: 98 | H173: 32 | I173: 39 | J173: 1113
B174: Incompetencia | C174: 9 | D174: 16 | E174: 3 | F174: 7 | G174: 4 | H174: 2 | I174: 1 | J174: =SUM(C174:I174) -> 42
B175: Falta de interés | C175: 10 | D175: 26 | F175: 2 | J175: 38
B176: Conciliación | C176: 23 | D176: 98 | E176: 5 | F176: 1 | I176: 15 | J176: 142
B177: Acumulación | C177: 9 | D177: 1 | E177: 1 | F177: 44 | G177: 3 | H177: 1 | J177: 59
B178: No se acreditan los hechos | C178: 86 | D178: 132 | E178: 39 | F178: 103 | G178: 45 | H178: 12 | I178: 11 | J178: 428
B179: Resueltas durante el procedimiento | C179: 15 | D179: 32 | E179: 2 | F179: 75 | G179: 14 | H179: 4 | I179: 3 | J179: 145
B180: Desistimiento | C180: 28 | D180: 35 | E180: 24 | F180: 7 | G180: 14 | H180: 3 | I180: 3 | J180: 114
B181: Sin materia | C181: 5 | D181: 4 | F181: 4 | G181: 2 | I181: 3 | J181: 18
B182: Acuerdo de no responsabilidad | H182: 1
B183: No localizacion | C183: 5 | D183: 6 | E183: 18 | F183: 1 | G183: 13 | H183: 1 | J183: =SUM(C183:I183) -> 44
B184: Extemporanea
B185: Improcedente | C185: 2 | D185: 3 | F185: 1 | J185: =SUM(C185:I185) -> 6
B186: No aclaración | D186: 1 | J186: 1
B187: No Ratificación | C187: 2 | D187: 15 | E187: 2 | F187: 1 | H187: 3 | I187: 1 | J187: 24
B188: Hechos no violatorios | C188: 1 | D188: 1 | F188: 1 | J188: 3
B189: Por atracción CNDH | J189: 0
B190: Recomendaciones 2017 | C190: 8 | D190: 6 | E190: 11 | F190: 14 | G190: 3 | H190: 5 | I190: 2 | J190: 49
B191: Trámite 2017 | C191: =SUM(C170-C172-C173) -> 85 | D191: =SUM(D170-D172-D173) -> 50 | E191: =SUM(E170-E172-E173) -> 101 | F191: 15 | G191: 49 | H191: 50 | I191: 25 | J191: 376
B192: Trámite Total 2017 | C192: =SUM(C30+C85+C138+C191) -> 106 | D192: 57 | E192: 130 | F192: 15 | G192: 49 | H192: 50 | I192: 25 | J192: 433
B193: Recomendaciones de Expedientes 2014 en 2017 = 4
B194: Recomendaciones de Expedientes 2015 en 2017 = 23
B195: Recomendaciones de Expedientes 2016 en 2017 = 27
C213: Comisión de los Derechos Humanos del Estado de Coahuila de Zaragoza
C214: Visitaduría General
F215: 2018
B218: Visitadurías Regionales | C218: Saltillo | D218: Torreón | E218: Piedras Negras | F218: Monclova | G218: Acuña | H218: Sabinas | I218: Parras | J218: TOTAL
B219: Asesorías | C219: 570 | D219: 685 | E219: 415 | F219: 515 | G219: 557 | H219: 523 | I219: 29 | J219: =SUM(C219:I219) -> 3294
B220: Gestorías | C220: 3 | F220: 7 | J220: =SUM(C220:I220) -> 10
B221: QUEJAS 2018 | C221: 186 | D221: 264 | E221: 132 | F221: 146 | G221: 109 | H221: 59 | I221: 33 | J221: =SUM(C221:I221) -> 929
B222: Admitidas | C222: 163 | D222: 262 | E222: 125 | F222: 121 | G222: 98 | H222: 55 | I222: 32 | J222: =SUM(C222:I222) -> 856
B223: Remisiones | C223: 23 | D223: 2 | E223: 7 | F223: 24 | G223: 11 | H223: 4 | I223: 1 | J223: =SUM(C223:I223) -> 72
B224: Concluidas 2018 | C224: =SUM(C225:C241) -> 70 | D224: =SUM(D225:D241) -> 100 | E224: =SUM(E225:E241) -> 19 | F224: 31 | G224: 13 | H224: =SUM(H225:H241) -> 16 | I224: 10 | J224: 259
B225: Incompetencia | C225: 4 | D225: 13 | E225: 9 | F225: 6 | G225: 3 | I225: 1 | J225: =SUM(C225:I225) -> 36
B226: Falta de interés | J226: 0
B227: Conciliación | C227: 28 | D227: 33 | H227: 2 | I227: 2 | J227: 65
B228: Acumulación | C228: 3 | F228: 1 | G228: 2 | H228: 4 | I228: 7 | J228: 17
B229: No se acreditan los hechos | C229: 16 | D229: 23 | E229: 2 | F229: 5 | H229: 4 | J229: 50
B230: Resueltas durante el procedimiento | C230: 5 | D230: 13 | F230: 14 | G230: 7 | H230: 1 | J230: 40
B231: Desistimiento | C231: 8 | D231: 7 | E231: 6 | F231: 2 | G231: 1 | H231: 4 | J231: 28
B232: Sin materia | C232: 2 | D232: 1 | J232: 3
B233: Acuerdo de no responsabilidad | D233: 2 | J233: 2
B234: No localizacion | D234: 2 | E234: 1 | J234: =SUM(C234:I234) -> 3
B235: Extemporanea
B236: Improcedente | C236: 3 | F236: 3 | J236: =SUM(C236:I236) -> 6
B237: No aclaración | D237: 1 | J237: 1
B238: No Ratificación | C238: 1 | D238: 5 | E238: 1 | H238: 1 | J238: 8
B239: Hechos no violatorios | J239: 0
B240: Por atracción CNDH | J240: 0
B241: Recomendaciones 2016 | J241: 0
B242: Trámite 2018 | C242: =SUM(C221-C223-C224) -> 93 | D242: =SUM(D221-D223-D224) -> 162 | E242: =SUM(E221-E223-E224) -> 106 | F242: 91 | G242: 85 | H242: =SUM(H221-H223-H224) -> 39 | I242: 22 | J242: 598
B243: Trámite Total 2018 | C243: =SUM(C85+C138+C191+C242) -> 199 | D243: =SUM(D85+D138+D191+D242) -> 219 | E243: 236 | F243: 106 | G243: 134 | H243: =SUM(H85+H138+H191+H242) -> 89 | I243: 47 | J243: 1031

Sheet V.V
B1: Comisión de los Derechos Humanos del Estado de Coahuila de Zaragoza
B2: Visitaduría General
B3: Estadística Enero
A5: Voces de Violación | B5: Saltillo | C5: Torreón | D5: Piedras Negras | E5: Monclova | F5: Acuña | G5: Sabinas | H5: TOTAL
A6: Detencion arbitraria
A7: Prest. Indeb. De Serv. Púb.
A8: Trato cruel, Inhumano o dregradante
A9: Lesiones
A10: Allanamiento
A11: Irregularidad en la Integ. De la Averig. Previa Penal
A12: Robo
A13: Ej. Inde. Fza. Púb.
A14: Derecho a la Edución
A15: Amenazas
A16: Dilación en Proc. De Just.
A17: Derecho a la Salud
A18: Falsas acusación
A19: Incump. Inadecuado de la negativa pública en mat. De procuración
A20: Intimidación
A21: Derechos de los Niños
A22: Derecho de la Petición
A23: Desaparición Forzada
A24: Denegación de Justicia
A25: Discapacidad
A26: Discriminación
A27: Incomunicación
A28: D. menores a que se prosesa su integridad
A29: Tortura
A30: Retención ilegal
A31: Otros

Sheet Auto.
B1: Comisión de los Derechos Humanos del Estado de Coahuila de Zaragoza
B2: Visitaduría General
B3: Estadística Enero - Noviembre 2013
A5: Autoridades | B5: Saltillo | C5: Torreón | D5: Piedras Negras | E5: Monclova | F5: Acuña | G5: Sabinas | H5: TOTAL
A6: Policía Preventiva Municipal
A7: PGJE
A8: SSP-CES
A9: Secretaría de Edu.
A10: Procuraduría de la Fam.
A11: Secretaría de Salud
A12: Dir. Reinserción Estatales
A13: Otros Autoridades Estatales
A14: Otros Autoridades Municipales

Sheet Gpo. Vul.
B1: Comisión de los Derechos Humanos del Estado de Coahuila de Zaragoza
B2: Visitaduría General
B3: Estadística Noviembre 2013
A5: Autoridades | B5: Saltillo | C5: Torreón | D5: Piedras Negras | E5: Monclova | F5: Acuña | G5: Sabinas | H5: TOTAL
A6: Mujer
A7: Hombre
A8: Niños
A9: Jóvenes
A10: Adultos Mayores
A11: Personas con discapacidad
A12: Servidores Públicos
A13: Migrantes
A14: Preferencial Sexual Diferente
A15: Indígenas
A16: Interno
A17: Defensor Civil de D.H
A18: Periódista

Sheet Salt.
B1: Comisión de los Derechos Humanos del Estado de Coahuila de Zaragoza
B2: Visitaduría General
B3: Estadística Diciembre 2013
A5: Visitadurías Regionales | B5: Saltillo | C5: 1 | D5: 2 | E5: 3 | F5: 4 | G5: 5 | H5: 6 | I5: 7 | J5: 8 | K5: 9 | L5: 10 | M5: 11 | N5: 12 | O5: 13 | P5: 14 | Q5: 15 | R5: 16 | S5: 18 | T5: 19 | U5: 20 | V5: 21 | W5: 22 | X5: 23 | Y5: 24 | Z5: 25 | AA5: 26 | AB5: 27 | AC5: 28 | AD5: 29 | AE5: 30 | AF5: 31
A6: Asesorías | B6: =SUM(C6:AG6) -> 0
A7: Gestorías | B7: =SUM(C7:AG7) -> 0
A8: Quejas 2013 | B8: =SUM(B9:B10) -> 0
A9: Admitidas | B9: 0
A10: Remisiones CNDH | B10: =SUM(C10:AG10) -> 0
A11: Concluidas | B11: =SUM(C11:AG11) -> 0
A12: Incompetencia | B12: =SUM(C12:AG12) -> 0
A13: Falta de interés | B13: 0
A14: Conciliación | B14: 0
A15: Acumulación | B15: 0
A16: No se acreditan los hechos | B16: 0
A17: Resueltas durante el procedimiento | B17: 0
A18: Desistimiento | B18: 0
A19: Sin materia | B19: 0
A20: Acuerdo de no responsabilidad | B20: 0
A21: No localizacion | B21: 0
A22: Hechos no violatorios | B22: 0
A23: Recomendaciones | B23: 0
A24: Trámite | B24: 0 | C24: =C9-C11 -> 0 | D24: 0 | E24: 0 | F24: 0 | G24: 0 | H24: 0 | I24: 0 | J24: 0 | K24: 0 | L24: 0 | M24: 0 | N24: 0 | O24: 0 | P24: 0 | Q24: 0 | R24: 0 | S24: 0 | T24: 0 | U24: 0 | V24: 0 | W24: 0 | X24: 0 | Y24: 0 | Z24: 0 | AA24: 0 | AB24: 0 | AC24: 0 | AD24: 0 | AE24: 0 | AF24: 0 | AG24: 0
A25: Voces de Violación
A26: Detencion arbitraria | B26: =SUM(C26:AG26) -> 0
A27: Prest. Indeb. De Serv. Púb. | B27: 0
A28: Trato cruel, Inhumano o dregradante | B28: 0
A29: Lesiones | B29: 0
A30: Allanamiento | B30: 0
A31: Irregularidad en la Integ. De la averig. Previa Penal | B31: 0
A32: Robo | B32: 0
A33: Ej. Inde. Fza. Púb. | B33: 0
A34: Derecho a la Edución | B34: 0
A35: Amenazas | B35: 0
A36: Dilación en Proc. De Just. | B36: 0
A37: Derecho a la Salud | B37: 0
A38: Falsas acusación | B38: 0
A39: Incump. Inadecuado de la negativa pública en mat. De procuración | B39: 0
A40: Intimidación | B40: 0
A41: Derechos de los Niños | B41: 0
A42: Derecho de la Petición | B42: 2 | F42: 1 | G42: 1
A43: Desaparición Forzada | B43: 0
A44: Denegación de Justicia | B44: 0
A45: Discapacidad | B45: 0
A46: Discriminación | B46: 0
A47: Incomunicación | B47: 0
A48: D. menores a que se procesa su integridad | B48: 0
A49: Tortura | B49: 0
A50: Retención ilegal | B50: 0
A51: Otros | B51: =SUM(C51:AG51) -> 0
A52: Autoridades
A53: Policía Preventiva Municipal | B53: =SUM(C53:AG53) -> 0
A54: PGJE | B54: 0
A55: SSP-CES | B55: 0
A56: Secretaría de Edu. | B56: 0
A57: Procuraduría de la Fam. | B57: 0
A58: Secretaría de Salud | B58: 0
A59: Dir. Reinserción Estatales | B59: 0
A60: Otros Autoridades Estatales | B60: 0
A61: Otros Autoridades Municipales | B61: 0
A62: Grupo Vulnerable
A63: Mujer | B63: =SUM(C63:AG63) -> 0
A64: Hombre | B64: 0
A65: Niños | B65: 0
A66: Jóvenes | B66: 0
A67: Adultos Mayores | B67: 0
A68: Personas con discapacidad | B68: 0
A69: Servidores Públicos | B69: 0
A70: Migrantes | B70: 0
A71: Preferencial Sexual Diferente | B71: 0
A72: Indígenas | B72: =SUM(C72:AG72) -> 0
A73: Interno | B73: =SUM(C73:AG73) -> 0
A74: Defensor Civil de D.H | B74: =SUM(C74:AG74) -> 0
A75: Periódista | B75: =SUM(C75:AG75) -> 0

Sheet Torr.
B1: Comisión de los Derechos Humanos del Estado de Coahuila de Zaragoza
B2: Visitaduría General
B3: Estadística Diciembre 2013
A5: Visitadurías Regionales | B5: Torreón | C5: 1 | D5: 2 | E5: 3 | F5: 4 | G5: 5 | H5: 6 | I5: 7 | J5: 8 | K5: 9 | L5: 10 | M5: 11 | N5: 12 | O5: 13 | P5: 14 | Q5: 15 | R5: 16 | S5: 17 | T5: 18 | U5: 19 | V5: 20 | W5: 21 | X5: 22 | Y5: 23 | Z5: 24 | AA5: 25 | AB5: 26 | AC5: 27 | AD5: 28 | AE5: 29 | AF5: 30 | AG5: 31
A6: Asesorías | B6: =SUM(C6:AG6) -> 22 | D6: 13 | E6: 9
A7: Gestorías | B7: =SUM(C7:AG7) -> 0
A8: Quejas 2013 | B8: 11 | C8: =C9+C10 -> 0 | D8: =D9+D10 -> 1 | E8: =E9+E10 -> 10
A9: Admitidas | B9: 11 | D9: 1 | E9: 10
A10: Remisiones CNDH | B10: 0
A11: Concluidas | B11: =SUM(C11:AG11) -> 0 | C11: =SUM(C12:C23) -> 0 | D11: =SUM(D12:D23) -> 0 | E11: =SUM(E12:E23) -> 0
A12: Incompetencia | B12: =SUM(C12:AG12) -> 0
A13: Falta de interés | B13: 0
A14: Conciliación | B14: 0
A15: Acumulación | B15: 0
A16: No se acreditan los hechos | B16: 0
A17: Resueltas durante el procedimiento | B17: 0
A18: Desistimiento | B18: 0
A19: Sin materia | B19: 0
A20: Acuerdo de no responsabilidad | B20: 0
A21: No localizacion | B21: 0
A22: Hechos no violatorios | B22: 0
A23: Recomendaciones | B23: 0
A24: Trámite | B24: 11 | C24: =C9-C11 -> 0 | D24: =D9-D11 -> 1 | E24: =E9-E11 -> 10
A25: Voces de Violación
A26: Detencion arbitraria | B26: =SUM(C26:AG26) -> 1 | E26: 1
A27: Prest. Indeb. De Serv. Púb. | B27: 5 | D27: 1 | E27: 4
A28: Trato cruel, Inhumano o dregradante | B28: 2 | E28: 2
A29: Lesiones | B29: 0
A30: Allanamiento | B30: 0
A31: Irregularidad en la Integ. De la averig. Previa Penal | B31: 2 | E31: 2
A32: Robo | B32: 1 | E32: 1
A33: Ej. Inde. Fza. Púb. | B33: 0
A34: Derecho a la Edución | B34: 0
A35: Amenazas | B35: 0
A36: Dilación en Proc. De Just. | B36: 2 | E36: 2
A37: Derecho a la Salud | B37: 0
A38: Falsas acusación | B38: 1 | E38: 1
A39: Incump. Inadecuado de la negativa pública en mat. De procuración | B39: 0
A40: Intimidación | B40: 0
A41: Derechos de los Niños | B41: 0
A42: Derecho de la Petición | B42: 0
A43: Desaparición Forzada | B43: 0
A44: Denegación de Justicia | B44: 1 | E44: 1
A45: Discapacidad | B45: 0
A46: Discriminación | B46: 0
A47: Incomunicación | B47: 0
A48: D. menores a que se procesa su integridad | B48: 0
A49: Tortura | B49: 0
A50: Retención ilegal | B50: 0
A51: Otros | B51: 6 | D51: 1 | E51: 5
A52: Autoridades
A53: Policía Preventiva Municipal | B53: =SUM(C53:AG53) -> 1 | E53: 1
A54: PGJE | B54: 7 | E54: 7
A55: SSP-CES | B55: 1 | E55: 1
A56: Secretaría de Edu. | B56: 0
A57: Procuraduría de la Fam. | B57: 0
A58: Secretaría de Salud | B58: 0
A59: Dir. Reinserción Estatales | B59: 1 | E59: 1
A60: Otros Autoridades Estatales | B60: 2 | E60: 2
A61: Otros Autoridades Municipales | B61: 1 | D61: 1
A62: Grupo Vulnerable
A63: Mujer | B63: =SUM(C63:AG63) -> 1 | E63: 1
A64: Hombre | B64: 6 | D64: 1 | E64: 5
A65: Niños | B65: 0
A66: Jóvenes | B66: 0
A67: Adultos Mayores | B67: 0
A68: Personas con discapacidad | B68: 0
A69: Servidores Públicos | B69: 0
A70: Migrantes | B70: 0
A71: Preferencial Sexual Diferente | B71: 0
A72: Indígenas | B72: 0
A73: Interno | B73: 2 | E73: 2
A74: Defensor Civil de D.H | B74: 2 | E74: 2
A75: Periódista | B75: 0

Sheet PN
B1: Comisión de los Derechos Humanos del Estado de Coahuila de Zaragoza
B2: Visitaduría General
B3: Estadística Diciembre 2013
A5: Visitadurías Regionales | B5: Piedras Nedras | C5: 1 | D5: 2 | E5: 3 | F5: 4 | G5: 5 | H5: 6 | I5: 7 | J5: 8 | K5: 9 | L5: 10 | M5: 11 | N5: 12 | O5: 13 | P5: 14 | Q5: 15 | R5: 16 | S5: 17 | T5: 18 | U5: 19 | V5: 20 | W5: 21 | X5: 22 | Y5: 23 | Z5: 24 | AA5: 25 | AB5: 26 | AC5: 27 | AD5: 28 | AE5: 29 | AF5: 30 | AG5: 31
A6: Asesorías | B6: =SUM(C6:AG6) -> 20 | D6: 4 | E6: 0 | T6: 7 | U6: 4 | V6: 5
A7: Gestorías | B7: =SUM(C7:AG7) -> 0
A8: Quejas 2013 | B8: 5 | C8: =C9+C10 -> 0 | D8: =D9+D10 -> 2 | E8: 0 | F8: 0 | G8: 0 | H8: 0 | I8: 0 | J8: 0 | K8: 0 | L8: 0 | M8: 0 | N8: 0 | O8: 0 | P8: 0 | Q8: 0 | R8: 0 | S8: 0 | T8: 0 | U8: 0 | V8: 0 | W8: 0 | X8: 0 | Y8: 3 | Z8: 0 | AA8: 0 | AB8: 0 | AC8: 0 | AD8: 0 | AE8: 0 | AF8: 0 | AG8: 0
A9: Admitidas | B9: 5 | D9: 2 | Y9: 3
A10: Remisiones CNDH | B10: 0
A11: Concluidas | B11: =SUM(C11:AG11) -> 0 | C11: =SUM(C12:C23) -> 0 | D11: =SUM(D12:D23) -> 0 | E11: 0 | F11: 0 | G11: 0 | H11: 0 | I11: 0 | J11: 0 | K11: 0 | L11: 0 | M11: 0 | N11: 0 | O11: 0 | P11: 0 | Q11: 0 | R11: 0 | S11: 0 | T11: 0 | U11: 0 | V11: 0 | W11: 0 | X11: 0 | Y11: 0 | Z11: 0 | AA11: 0 | AB11: 0 | AC11: 0 | AD11: 0 | AE11: 0 | AF11: 0 | AG11: 0
A12: Incompetencia | B12: =SUM(C12:AG12) -> 0
A13: Falta de interés | B13: 0
A14: Conciliación | B14: 0
A15: Acumulación | B15: 0
A16: No se acreditan los hechos | B16: 0
A17: Resueltas durante el procedimiento | B17: 0
A18: Desistimiento | B18: 0
A19: Sin materia | B19: 0
A20: Acuerdo de no responsabilidad | B20: 0
A21: No localizacion | B21: 0
A22: Hechos no violatorios | B22: 0
A23: Recomendaciones | B23: 0
A24: Trámite | B24: 5 | C24: =C9-C11 -> 0 | D24: 2 | E24: 0 | F24: 0 | G24: 0 | H24: 0 | I24: 0 | J24: 0 | K24: 0 | L24: 0 | M24: 0 | N24: 0 | O24: 0 | P24: 0 | Q24: 0 | R24: 0 | S24: 0 | T24: 0 | U24: 0 | V24: 0 | W24: 0 | X24: 0 | Y24: 3 | Z24: 0 | AA24: 0 | AB24: 0 | AC24: 0 | AD24: 0 | AE24: 0 | AF24: 0 | AG24: 0
A25: Voces de Violación
A26: Detencion arbitraria | B26: =SUM(C26:AG26) -> 0
A27: Prest. Indeb. De Serv. Púb. | B27: 0
A28: Trato cruel, Inhumano o dregradante | B28: 0
A29: Lesiones | B29: 0
A30: Allanamiento | B30: 0
A31: Irregularidad en la Integ. De la averig. Previa Penal | B31: 0
A32: Robo | B32: 0
A33: Ej. Inde. Fza. Púb. | B33: 0
A34: Derecho a la Edución | B34: 1 | D34: 1
A35: Amenazas | B35: 0
A36: Dilación en Proc. De Just. | B36: 0
A37: Derecho a la Salud | B37: 0
A38: Falsas acusación | B38: 0
A39: Incump. Inadecuado de la negativa pública en mat. De procuración | B39: 0
A40: Intimidación | B40: 0
A41: Derechos de los Niños | B41: 0
A42: Derecho de la Petición | B42: 0
A43: Desaparición Forzada | B43: 0
A44: Derecho a la Seguridad Jurídica | B44: 1 | D44: 1
A45: Discapacidad | B45: 0
A46: Discriminación | B46: 0
A47: Incomunicación | B47: 0
A48: D. menores a que se procesa su integridad | B48: 0
A49: Tortura | B49: 0
A50: Retención ilegal | B50: 0
A51: Otros | B51: 0
A52: Autoridades
A53: Policía Preventiva Municipal | B53: =SUM(C53:AG53) -> 0
A54: PGJE | B54: 1 | D54: 1
A55: SSP-CES | B55: 0
A56: Secretaría de Edu. | B56: 1 | D56: 1
A57: Procuraduría de la Fam. | B57: 0
A58: Secretaría de Salud | B58: 0
A59: Dir. Reinserción Estatales | B59: 0
A60: Otros Autoridades Estatales | B60: 0
A61: Otros Autoridades Municipales | B61: 0
A62: Grupo Vulnerable
A63: Mujer | B63: =SUM(C63:AG63) -> 0
A64: Hombre | B64: 1 | D64: 1
A65: Niños | B65: 0
A66: Jóvenes | B66: 2 | D66: 2
A67: Adultos Mayores | B67: 0
A68: Personas con discapacidad | B68: 0
A69: Servidores Públicos | B69: 0
A70: Migrantes | B70: 0
A71: Preferencial Sexual Diferente | B71: 0
A72: Indígenas | B72: 0
A73: Interno | B73: 0
A74: Defensor Civil de D.H | B74: 0
A75: Periódista | B75: 0

Sheet Mva.
B1: Comisión de los Derechos Humanos del Estado de Coahuila de Zaragoza
B2: Visitaduría General
B3: Estadística Diciembre 2013
A5: Visitadurías Regionales | B5: Monclova | C5: 1 | D5: 2 | E5: 3 | F5: 4 | G5: 5 | H5: 6 | I5: 7 | J5: 8 | K5: 9 | L5: 10 | M5: 11 | N5: 12 | O5: 13 | P5: 14 | Q5: 15 | R5: 16 | S5: 17 | T5: 18 | U5: 19 | V5: 20 | W5: 21 | X5: 22 | Y5: 23 | Z5: 24 | AA5: 25 | AB5: 26 | AC5: 27 | AD5: 28 | AE5: 29 | AF5: 30 | AG5: 31
A6: Asesorías | B6: =SUM(C6:AG6) -> 107 | D6: 7 | E6: 6 | F6: 5 | G6: 6 | H6: 8 | K6: 5 | L6: 4 | M6: 4 | N6: 5 | O6: 6 | R6: 7 | S6: 6 | T6: 5 | U6: 9 | V6: 13 | Y6: 3 | Z6: 2 | AB6: 4 | AC6: 2
A7: Gestorías | B7: 0
A8: Quejas 2013 | B8: 13 | C8: =C9+C10 -> 0 | D8: =D9+D10 -> 0 | E8: 3 | F8: 0 | G8: 0 | H8: 0 | I8: 0 | J8: 0 | K8: 0 | L8: 0 | M8: 0 | N8: 0 | O8: 0 | P8: 0 | Q8: 0 | R8: 4 | S8: 0 | T8: 0 | U8: 4 | V8: 0 | W8: 0 | X8: 0 | Y8: 2 | Z8: 0 | AA8: 0 | AB8: 0 | AC8: 0 | AD8: 0 | AE8: 0 | AF8: 0 | AG8: 0
A9: Admitidas | B9: 10 | E9: 2 | R9: 4 | U9: 2 | Y9: 2
A10: Remisiones CNDH | B10: 3 | E10: 1 | U10: 2
A11: Concluidas | B11: 1 | C11: =SUM(C12:C23) -> 0 | D11: =SUM(D12:D23) -> 0 | E11: 1 | F11: 0 | G11: 0 | H11: 0 | I11: 0 | J11: 0 | K11: 0 | L11: 0 | M11: 0 | N11: 0 | O11: 0 | P11: 0 | Q11: 0 | R11: 0 | S11: 0 | T11: 0 | U11: 0 | V11: 0 | W11: 0 | X11: 0 | Y11: 0 | Z11: 0 | AA11: 0 | AB11: 0 | AC11: 0 | AD11: 0 | AE11: 0 | AF11: 0 | AG11: 0
A12: Incompetencia | B12: 1 | E12: 1
A13: Falta de interés | B13: 0
A14: Conciliación | B14: 0
A15: Acumulación | B15: 0
A16: No se acreditan los hechos | B16: 0
A17: Resueltas durante el procedimiento | B17: 0
A18: Desistimiento | B18: 0
A19: Sin materia | B19: 0
A20: Acuerdo de no responsabilidad | B20: 0
A21: No localizacion | B21: 0
A22: Hechos no violatorios | B22: 0
A23: Recomendaciones | B23: 0
A24: Trámite | B24: 9 | C24: =C9-C11 -> 0 | D24: 0 | E24: 1 | F24: 0 | G24: 0 | H24: 0 | I24: 0 | J24: 0 | K24: 0 | L24: 0 | M24: 0 | N24: 0 | O24: 0 | P24: 0 | Q24: 0 | R24: 4 | S24: 0 | T24: 0 | U24: 2 | V24: 0 | W24: 0 | X24: 0 | Y24: 2 | Z24: 0 | AA24: 0 | AB24: 0 | AC24: 0 | AD24: 0 | AE24: 0 | AF24: 0 | AG24: 0
A25: Voces de Violación
A26: Detencion arbitraria | B26: =SUM(C26:AG26) -> 0
A27: Prest. Indeb. De Serv. Púb. | B27: 1 | E27: 1
A28: Trato cruel, Inhumano o dregradante | B28: 0
A29: Lesiones | B29: 0
A30: Allanamiento | B30: 0
A31: Irregularidad en la Integ. De la averig. Previa Penal | B31: 0
A32: Robo | B32: 0
A33: Ej. Inde. Fza. Púb. | B33: 0
A34: Derecho a la Edución | B34: 0
A35: Amenazas | B35: 0
A36: Dilación en Proc. De Just. | B36: 0
A37: Derecho a la Salud | B37: 0
A38: Falsas acusación | B38: 0
A39: Incump. Inadecuado de la negativa pública en mat. De procuración | B39: 0
A40: Intimidación | B40: 1 | E40: 1
A41: Derechos de los Niños | B41: 0
A42: Derecho de la Petición | B42: 0
A43: Desaparición Forzada | B43: 0
A44: Derecho a la Seguridad Jurídica | B44: 0
A45: Discapacidad | B45: 0
A46: Discriminación | B46: 0
A47: Incomunicación | B47: 0
A48: D. menores a que se procesa su integridad | B48: 0
A49: Tortura | B49: 0
A50: Retención ilegal | B50: 0
A51: Otros | B51: 1 | E51: 1
A52: Autoridades
A53: Policía Preventiva Municipal | B53: =SUM(C53:AG53) -> 0
A54: PGJE | B54: 0
A55: SSP-CES | B55: 0
A56: Secretaría de Edu. | B56: 0
A57: Procuraduría de la Fam. | B57: 0
A58: Secretaría de Salud | B58: 0
A59: Dir. Reinserción Estatales | B59: 0
A60: Otros Autoridades Estatales | B60: 0
A61: Otros Autoridades Municipales | B61: 1 | E61: 1
A62: Grupo Vulnerable
A63: Mujer | B63: =SUM(C63:AG63) -> 0
A64: Hombre | B64: 1 | E64: 1
A65: Niños | B65: 0
A66: Jóvenes | B66: 0
A67: Adultos Mayores | B67: 0
A68: Personas con discapacidad | B68: 0
A69: Servidores Públicos | B69: 0
A70: Migrantes | B70: 0
A71: Preferencial Sexual Diferente | B71: 0
A72: Indígenas | B72: 0
A73: Interno | B73: 0
A74: Defensor Civil de D.H | B74: 0
A75: Periódista | B75: 0

Sheet Acu.
B1: Comisión de los Derechos Humanos del Estado de Coahuila de Zaragoza
B2: Visitaduría General
B3: Estadística Diciembre 2013
A5: Visitadurías Regionales | B5: Piedras Nedras | C5: 1 | D5: 2 | E5: 3 | F5: 4 | G5: 5 | H5: 6 | I5: 7 | J5: 8 | K5: 9 | L5: 10 | M5: 11 | N5: 12 | O5: 13 | P5: 14 | Q5: 15 | R5: 16 | S5: 17 | T5: 18 | U5: 19 | V5: 20 | W5: 21 | X5: 22 | Y5: 23 | Z5: 24 | AA5: 25 | AB5: 26 | AC5: 27 | AD5: 28 | AE5: 29 | AF5: 30 | AG5: 31
A6: Asesorías | B6: =SUM(C6:AG6) -> 0
A7: Gestorías | B7: =SUM(C7:AG7) -> 0
A8: Quejas 2013 | B8: 4 | C8: =C9+C10 -> 0 | D8: =D9+D10 -> 0 | E8: 0 | F8: 0 | G8: 0 | H8: 0 | I8: 0 | J8: 0 | K8: 0 | L8: 0 | M8: 0 | N8: 0 | O8: 0 | P8: 0 | Q8: 0 | R8: 0 | S8: 0 | T8: 0 | U8: 0 | V8: 0 | W8: 0 | X8: 0 | Y8: 4 | Z8: 0 | AA8: 0 | AB8: 0 | AC8: 0 | AD8: 0 | AE8: 0 | AF8: 0 | AG8: 0
A9: Admitidas | B9: 4 | Y9: 4
A10: Remisiones CNDH | B10: 0
A11: Concluidas | B11: =SUM(C11:AG11) -> 5 | C11: =SUM(C12:C23) -> 0 | D11: =SUM(D12:D23) -> 0 | E11: 0 | F11: 0 | G11: 0 | H11: 1 | I11: 0 | J11: 0 | K11: 0 | L11: 0 | M11: 0 | N11: 0 | O11: 0 | P11: 0 | Q11: 0 | R11: 0 | S11: 0 | T11: 0 | U11: 0 | V11: 4 | W11: 0 | X11: 0 | Y11: 0 | Z11: 0 | AA11: 0 | AB11: 0 | AC11: 0 | AD11: 0 | AE11: 0 | AF11: 0 | AG11: 0
A12: Incompetencia | B12: =SUM(C12:AG12) -> 0
A13: Falta de interés | B13: 2 | V13: 2
A14: Conciliación | B14: 0
A15: Acumulación | B15: 0
A16: No se acreditan los hechos | B16: 0
A17: Resueltas durante el procedimiento | B17: 2 | H17: 1 | V17: 1
A18: Desistimiento | B18: 1 | V18: 1
A19: Sin materia | B19: 0
A20: Acuerdo de no responsabilidad | B20: 0
A21: No localizacion | B21: 0
A22: Hechos no violatorios | B22: 0
A23: Recomendaciones | B23: 0
A24: Trámite | B24: -1 | C24: =C9-C11 -> 0 | D24: 0 | E24: 0 | F24: 0 | G24: 0 | H24: -1 | I24: 0 | J24: 0 | K24: 0 | L24: 0 | M24: 0 | N24: 0 | O24: 0 | P24: 0 | Q24: 0 | R24: 0 | S24: 0 | T24: 0 | U24: 0 | V24: -4 | W24: 0 | X24: 0 | Y24: 4 | Z24: 0 | AA24: 0 | AB24: 0 | AC24: 0 | AD24: 0 | AE24: 0 | AF24: 0 | AG24: 0
A25: Voces de Violación
A26: Detencion arbitraria | B26: =SUM(C26:AG26) -> 0
A27: Prest. Indeb. De Serv. Púb. | B27: 0
A28: Trato cruel, Inhumano o dregradante | B28: 0
A29: Lesiones | B29: 0
A30: Allanamiento | B30: 0
A31: Irregularidad en la Integ. De la averig. Previa Penal | B31: 0
A32: Robo | B32: 0
A33: Ej. Inde. Fza. Púb. | B33: 0
A34: Derecho a la Edución | B34: 0
A35: Amenazas | B35: 0
A36: Dilación en Proc. De Just. | B36: 0
A37: Derecho a la Salud | B37: 0
A38: Falsas acusación | B38: 0
A39: Incump. Inadecuado de la negativa pública en mat. De procuración | B39: 0
A40: Intimidación | B40: 0
A41: Derechos de los Niños | B41: 0
A42: Derecho de la Petición | B42: 0
A43: Desaparición Forzada | B43: 0
A44: Derecho a la Seguridad Jurídica | B44: 0
A45: Discapacidad | B45: 0
A46: Discriminación | B46: 0
A47: Incomunicación | B47: 0
A48: D. menores a que se procesa su integridad | B48: 0
A49: Tortura | B49: 0
A50: Retención ilegal | B50: 0
A51: Otros | B51: 0
A52: Autoridades
A53: Policía Preventiva Municipal | B53: =SUM(C53:AG53) -> 0
A54: PGJE | B54: 0
A55: SSP-CES | B55: 0
A56: Secretaría de Edu. | B56: 0
A57: Procuraduría de la Fam. | B57: 0
A58: Secretaría de Salud | B58: 0
A59: Dir. Reinserción Estatales | B59: 0
A60: Otros Autoridades Estatales | B60: 0
A61: Otros Autoridades Municipales | B61: 0
A62: Grupo Vulnerable
A63: Mujer | B63: =SUM(C63:AG63) -> 0
A64: Hombre | B64: 0
A65: Niños | B65: 0
A66: Jóvenes | B66: 0
A67: Adultos Mayores | B67: 0
A68: Personas con discapacidad | B68: 0
A69: Servidores Públicos | B69: 0
A70: Migrantes | B70: 0
A71: Preferencial Sexual Diferente | B71: 0
A72: Indígenas | B72: 0
A73: Interno | B73: 0
A74: Defensor Civil de D.H | B74: 0
A75: Periódista | B75: 0

Sheet Sab.
B1: Comisión de los Derechos Humanos del Estado de Coahuila de Zaragoza
B2: Visitaduría General
B3: Estadística Diciembre 2013
A5: Visitadurías Regionales | B5: Piedras Nedras | C5: 1 | D5: 2 | E5: 3 | F5: 4 | G5: 5 | H5: 6 | I5: 7 | J5: 8 | K5: 9 | L5: 10 | M5: 11 | N5: 12 | O5: 13 | P5: 14 | Q5: 15 | R5: 16 | S5: 17 | T5: 18 | U5: 19 | V5: 20 | W5: 21 | X5: 22 | Y5: 23 | Z5: 24 | AA5: 25 | AB5: 26 | AC5: 27 | AD5: 28 | AE5: 29 | AF5: 30 | AG5: 31
A6: Asesorías | B6: =SUM(C6:AG6) -> 0
A7: Gestorías | B7: 0
A8: Quejas 2013 | B8: 7 | C8: =C9+C10 -> 0 | D8: =D9+D10 -> 0 | E8: 0 | F8: 0 | G8: 0 | H8: 0 | I8: 0 | J8: 0 | K8: 0 | L8: 0 | M8: 0 | N8: 0 | O8: 0 | P8: 0 | Q8: 0 | R8: 4 | S8: 0 | T8: 0 | U8: 0 | V8: 0 | W8: 0 | X8: 0 | Y8: 3 | Z8: 0 | AA8: 0 | AB8: 0 | AC8: 0 | AD8: 0 | AE8: 0 | AF8: 0 | AG8: 0
A9: Admitidas | B9: 6 | R9: 3 | Y9: 3
A10: Remisiones CNDH | B10: 1 | R10: 1
A11: Concluidas | B11: 1 | C11: =SUM(C12:C23) -> 0 | D11: =SUM(D12:D23) -> 0 | E11: 0 | F11: 0 | G11: 0 | H11: 0 | I11: 0 | J11: 0 | K11: 0 | L11: 0 | M11: 0 | N11: 0 | O11: 0 | P11: 0 | Q11: 0 | R11: 1 | S11: 0 | T11: 0 | U11: 0 | V11: 0 | W11: 0 | X11: 0 | Y11: 0 | Z11: 0 | AA11: 0 | AB11: 0 | AC11: 0 | AD11: 0 | AE11: 0 | AF11: 0 | AG11: 0
A12: Incompetencia | B12: 1 | R12: 1
A13: Falta de interés | B13: 0
A14: Conciliación | B14: 0
A15: Acumulación | B15: 0
A16: No se acreditan los hechos | B16: 0
A17: Resueltas durante el procedimiento | B17: 0
A18: Desistimiento | B18: 0
A19: Sin materia | B19: 0
A20: Acuerdo de no responsabilidad | B20: 0
A21: No localizacion | B21: 0
A22: Hechos no violatorios | B22: 0
A23: Recomendaciones | B23: 0
A24: Trámite | B24: 5 | C24: =C9-C11 -> 0 | D24: 0 | E24: 0 | F24: 0 | G24: 0 | H24: 0 | I24: 0 | J24: 0 | K24: 0 | L24: 0 | M24: 0 | N24: 0 | O24: 0 | P24: 0 | Q24: 0 | R24: 2 | S24: 0 | T24: 0 | U24: 0 | V24: 0 | W24: 0 | X24: 0 | Y24: 3 | Z24: 0 | AA24: 0 | AB24: 0 | AC24: 0 | AD24: 0 | AE24: 0 | AF24: 0 | AG24: 0
A25: Voces de Violación
A26: Detencion arbitraria | B26: =SUM(C26:AG26) -> 0
A27: Prest. Indeb. De Serv. Púb. | B27: 0
A28: Trato cruel, Inhumano o dregradante | B28: 2 | R28: 2
A29: Lesiones | B29: 0
A30: Allanamiento | B30: 0
A31: Irreg. Inter. A.P.P. | B31: 0
A32: Robo | B32: 0
A33: Ej. Inde. Fza. Púb. | B33: 0
A34: Derecho a la Edución | B34: 1 | R34: 1
A35: Amenazas | B35: 0
A36: Dilación en Proc. De Just. | B36: 2 | R36: 2
A37: Derecho a la Salud | B37: 0
A38: Falsas acusación | B38: 0
A39: Incump. i/n pub. Mat. De procuración | B39: 0
A40: Intimidación | B40: 0
A41: Derechos de los Niños | B41: 0
A42: Derecho de la Petición | B42: 0
A43: Desaparición Forzada | B43: 0
A44: Derecho a la Seguridad Jurídica | B44: 0
A45: Discapacidad | B45: 0
A46: Discriminación | B46: 0
A47: Incomunicación | B47: 0
A48: D. menores a que se procesa su integridad | B48: 0
A49: Tortura | B49: 0
A50: Retención ilegal | B50: 0
A51: Otros | B51: 2 | R51: 2
A52: Autoridades
A53: Policía Preventiva Municipal | B53: =SUM(C53:AG53) -> 0
A54: PGJE | B54: 0
A55: SSP-CES | B55: 0
A56: Secretaría de Edu. | B56: 1 | R56: 1
A57: Procuraduría de la Fam. | B57: 0
A58: Secretaría de Salud | B58: 0
A59: Dir. Reinserción Estatales | B59: 0
A60: Otros Autoridades Estatales | B60: 0
A61: Otros Autoridades Municipales | B61: 2 | R61: 2
A62: Grupo Vulnerable
A63: Mujer | B63: =SUM(C63:AG63) -> 0
A64: Hombre | B64: 0
A65: Niños | B65: 1 | R65: 1
A66: Jóvenes | B66: 2 | R66: 2
A67: Adultos Mayores | B67: 0
A68: Personas con discapacidad | B68: 0
A69: Servidores Públicos | B69: 0
A70: Migrantes | B70: 0
A71: Preferencial Sexual Diferente | B71: 0
A72: Indígenas | B72: 0
A73: Interno | B73: 0
A74: Defensor Civil de D.H | B74: 0
A75: Periódista | B75: 0

Sheet Solicitudes de Inter.
B1: Comisión de los Derechos Humanos del Estado de Coahuila de Zaragoza
B2: Visitaduría General
B3: Estadística Enero - Octubre 2013
A5: Solicitudes de Intervención | B5: Saltillo | C5: Torreón | D5: Piedras Negras | E5: Monclova | F5: Acuña | G5: Sabinas | H5: TOTAL
A6: Asesorías | B6: 84 | C6: 122 | D6: 81 | E6: 78 | F6: 0 | G6: 3 | H6: =SUM(B6:G6) -> 368
A7: Gestorías | B7: 0 | C7: 0 | D7: 0 | E7: 0 | F7: 0 | G7: 0 | H7: 0
A8: Quejas 2013

Sheet Hoja1
A1: 27 | C1: 30 | D1: 15 | E1: 13
A2: 3 | C2: 117 | D2: 271 | E2: 165
A3: 11 | C3: 72 | D3: 64 | E3: 40
A4: 10 | C4: 25 | D4: 35 | E4: 39
A5: 0 | C5: 202 | D5: 29 | E5: 10
A6: 81 | C6: 210 | D6: 152 | E6: 86
A7: 3 | C7: 98 | D7: 111 | E7: 33
C8: 11 | D8: 10 | E8: 8
A9: 2 | C9: 6 | D9: 0 | E9: 0
A10: 52 | C10: 17 | D10: 34 | E10: 22
A11: 4 | C11: 0 | D11: 1 | E11: 0
A12: 3 | C12: 0 | D12: 9 | E12: 19
A13: =SUM(A1:A12) -> 196 | C13: 0 | D13: 2 | E13: 9
C14: 0 | D14: 42 | E14: 39
C15: 10 | D15: 3 | E15: 0
C16: 0 | D16: 134 | E16: 79
C17: 31 | D17: =SUM(D1:D16) -> 912 | E17: =SUM(E1:E16) -> 562
C18: =SUM(C1:C17) -> 829
